fUST/lending_fUST_20250204
["ID","MTS","AMOUNT","RATE_DAILY","PERIOD"]
[351514435,1738611033493,-500.0,0.00016438,2]
[351514437,1738611033502,-523.35,0.00016438,2]
[351514438,1738611033512,-500.0,0.00016438,2]
[351514439,1738611033521,-500.0,0.00016438,2]
[351514440,1738611033531,-500.0,0.00016438,2]
[351514441,1738611033541,-500.0,0.00016438,2]
[351514442,1738611033550,-500.0,0.00016438,2]
[351514443,1738611033561,-500.0,0.00016438,2]
[351514444,1738611033570,-500.0,0.00016438,2]
[351514445,1738611033580,-500.0,0.00016438,2]
[351514446,1738611033590,-500.0,0.00016438,2]
[351514447,1738611033600,-500.0,0.00016438,2]
[351514448,1738611033609,-500.0,0.00016438,2]
[351514449,1738611033623,-500.0,0.00016438,2]
[351514450,1738611033632,-500.0,0.00016438,2]
[351514451,1738611033642,-500.0,0.00016438,2]
[351514452,1738611033652,-500.0,0.00016438,2]
[351514453,1738611033662,-500.0,0.00016438,2]
[351514454,1738611033672,-500.0,0.00016438,2]
[351514455,1738611033682,-500.0,0.00016438,2]
[351514456,1738611033691,-500.0,0.00016438,2]
[351514457,1738611033701,-500.0,0.00016438,2]
[351514458,1738611033711,-500.0,0.00016438,2]
[351514459,1738611033721,-500.0,0.00016438,2]
[351514460,1738611033730,-648.17,0.00016438,2]
[351514461,1738611033739,-507.0409823,0.00016438,2]
[351514462,1738611033749,-500.0,0.00016438,2]
[351514463,1738611033758,-500.0,0.00016438,2]
[351514464,1738611033768,-912.15,0.00016438,2]
[351514465,1738611033777,-500.0,0.00016438,2]
[351514466,1738611033787,-500.0,0.00016438,2]
[351514467,1738611033796,-500.0,0.00016438,2]
[351514468,1738611033805,-500.0,0.00016438,2]
[351514469,1738611033815,-500.0,0.00016438,2]
[351514470,1738611033824,-500.0,0.00016438,2]
[351514471,1738611033834,-1818.51,0.00016438,2]
[351514472,1738611033843,-500.0,0.00016438,2]
[351514473,1738611033853,-500.0,0.00016438,2]
[351514474,1738611033862,-500.0,0.00016438,2]
[351514475,1738611033874,-4561.23,0.00016438,2]
[351514476,1738611033885,-642.96661091,0.00016438,2]
[351514477,1738611033894,-500.0,0.00016438,2]
[351514478,1738611033904,-500.0,0.00016438,2]
[351514479,1738611033914,-500.0,0.00016438,2]
[351514480,1738611033924,-500.0,0.00016438,2]
[351514481,1738611033933,-500.0,0.00016438,2]
[351514482,1738611033944,-233.81152317,0.00016438,2]
[351514483,1738611033954,-900.96,0.00016438,2]
[351514484,1738611033963,-500.0,0.00016438,2]
[351514485,1738611033972,-500.0,0.00016438,2]
[351514486,1738611033982,-702.53,0.00016438,2]
[351514487,1738611033991,-505.62911672,0.00016438,2]
[351514488,1738611034001,-500.0,0.00016438,2]
[351514490,1738611034011,-509.88046329,0.00016438,2]
[351514492,1738611034020,-500.0,0.00016438,2]
[351514493,1738611034029,-500.0,0.00016438,2]
[351514494,1738611034038,-500.0,0.00016438,2]
[351514495,1738611034048,-500.0,0.00016438,2]
[351514496,1738611034058,-2166.03,0.00016438,2]
[351514497,1738611034068,-500.0,0.00016438,2]
[351514498,1738611034078,-500.0,0.00016438,2]
[351514499,1738611034088,-500.0,0.00016438,2]
[351514500,1738611034098,-500.0,0.00016438,2]
[351514501,1738611034107,-500.0,0.00016438,2]
[351514502,1738611034121,-500.0,0.00016438,2]
[351514503,1738611034131,-500.0,0.00016438,2]
[351514504,1738611034141,-500.0,0.00016438,2]
[351514505,1738611034151,-500.0,0.00016438,2]
[351514506,1738611034161,-500.0,0.00016438,2]
[351514507,1738611034171,-3563.42902638,0.0001647,2]
[351514508,1738611034181,-11840.63875995,0.000165,2]
[351514509,1738611034190,-13770.96078321,0.00016544,2]
[351514510,1738611034200,-500.0,0.00016574,2]
[351514511,1738611034210,-500.0,0.00016574,2]
[351514512,1738611034220,-500.0,0.00016574,2]
[351514513,1738611034230,-500.0,0.00016575,2]
[351514514,1738611034239,-500.0,0.00016575,2]
[351514515,1738611034249,-500.0,0.00016575,2]
[351514516,1738611034258,-500.0,0.00016575,2]
[351514517,1738611034267,-500.0,0.00016575,2]
[351514518,1738611034276,-500.0,0.00016575,2]
[351514519,1738611034286,-500.0,0.00016575,2]
[351514520,1738611034295,-646.20803136,0.00016575,2]
[351514521,1738611034305,-500.0,0.00016575,2]
[351514522,1738611034315,-500.0,0.00016575,2]
[351514523,1738611034324,-497.65876257,0.00016575,2]
[351514615,1738611037915,-500.0,0.00016438,2]
[351514617,1738611037926,-2.34123743,0.00016575,2]
[351514619,1738611037936,-500.0,0.00016575,2]
[351514620,1738611037946,-500.0,0.00016575,2]
[351514621,1738611037956,-500.0,0.00016575,2]
[351514622,1738611037966,-500.0,0.00016575,2]
[351514623,1738611037975,-500.0,0.00016575,2]
[351514624,1738611037985,-500.0,0.00016575,2]
[351514625,1738611037995,-500.0,0.00016575,2]
[351514626,1738611038005,-616.01,0.00016575,2]
[351514627,1738611038015,-500.0,0.00016575,2]
[351514628,1738611038027,-319.63867029,0.00016575,2]
[351514629,1738611038037,-500.0,0.00016575,2]
[351514630,1738611038047,-547.71,0.00016575,2]
[351514631,1738611038056,-500.0,0.00016575,2]
[351514632,1738611038065,-1276.54,0.00016575,2]
[351514633,1738611038075,-500.0,0.00016575,2]
[351514634,1738611038084,-500.0,0.00016575,2]
[351514635,1738611038094,-916.02,0.00016575,2]
[351514636,1738611038104,-2386.29,0.00016575,2]
[351514637,1738611038113,-2358.16,0.00016575,2]
[351514638,1738611038125,-500.0,0.00016575,2]
[351514639,1738611038136,-500.0,0.00016575,2]
[351514640,1738611038146,-500.0,0.00016575,2]
[351514641,1738611038157,-500.0,0.00016575,2]
[351514642,1738611038167,-500.0,0.00016575,2]
[351514643,1738611038177,-500.0,0.00016575,2]
[351514644,1738611038188,-500.0,0.00016575,2]
[351514646,1738611038203,-500.0,0.00016575,2]
[351514647,1738611038214,-505.49543181,0.00016575,2]
[351514648,1738611038229,-500.0,0.00016575,2]
[351514650,1738611038243,-500.0,0.00016575,2]
[351514652,1738611038253,-500.0,0.00016575,2]
[351514654,1738611038264,-500.0,0.00016575,2]
[351514656,1738611038274,-500.0,0.00016575,2]
[351514658,1738611038283,-834.04,0.00016575,2]
[351514660,1738611038294,-403.36078278,0.00016575,2]
[351514662,1738611038304,-500.0,0.00016575,2]
[351514663,1738611038313,-500.0,0.00016575,2]
[351514665,1738611038326,-500.0,0.00016575,2]
[351514667,1738611038337,-500.0,0.00016575,2]
[351514669,1738611038346,-9838.86,0.00016575,2]
[351514671,1738611038357,-500.0,0.00016575,2]
[351514673,1738611038369,-500.0,0.00016575,2]
[351514675,1738611038381,-500.0,0.00016575,2]
[351514677,1738611038391,-1207.01,0.00016575,2]
[351514679,1738611038402,-500.0,0.00016575,2]
[351514681,1738611038414,-500.0,0.00016575,2]
[351514683,1738611038425,-500.0,0.00016575,2]
[351514685,1738611038437,-500.0,0.00016575,2]
[351514687,1738611038449,-500.0,0.00016575,2]
[351514689,1738611038461,-529.37,0.00016575,2]
[351514691,1738611038472,-3865.31,0.00016575,2]
[351514693,1738611038482,-500.0,0.00016575,2]
[351514695,1738611038492,-500.0,0.00016575,2]
[351514711,1738611038634,-523.35,0.00016575,2]
[351514713,1738611038644,-541.5333478,0.00016575,2]
[351514715,1738611038655,-500.0,0.00016575,2]
[351514717,1738611038665,-500.0,0.00016575,2]
[351514719,1738611038675,-500.0,0.00016575,2]
[351514721,1738611038684,-500.0,0.00016575,2]
[351514723,1738611038694,-500.0,0.00016575,2]
[351514725,1738611038704,-500.0,0.00016575,2]
[351514727,1738611038714,-500.0,0.00016575,2]
[351514729,1738611038723,-500.0,0.00016575,2]
[351514731,1738611038733,-500.0,0.00016575,2]
[351514733,1738611038743,-500.0,0.00016575,2]
[351514735,1738611038753,-500.0,0.00016575,2]
[351514737,1738611038763,-500.0,0.00016575,2]
[351514739,1738611038772,-500.0,0.00016575,2]
[351514741,1738611038782,-500.0,0.00016575,2]
[351514743,1738611038791,-648.17,0.00016575,2]
[351514745,1738611038801,-507.41137883,0.00016575,2]
[351514747,1738611038811,-500.0,0.00016575,2]
[351514749,1738611038820,-912.15,0.00016575,2]
[351514751,1738611038830,-500.0,0.00016575,2]
[351514753,1738611038839,-1818.51,0.00016575,2]
[351514755,1738611038849,-500.0,0.00016575,2]
[351514757,1738611038860,-500.0,0.00016575,2]
[351514759,1738611038871,-4561.23,0.00016575,2]
[351514761,1738611038879,-500.0,0.00016575,2]
[351514763,1738611038889,-500.0,0.00016575,2]
[351514765,1738611038898,-500.0,0.00016575,2]
[351514767,1738611038907,-500.0,0.00016575,2]
[351514769,1738611038917,-900.96,0.00016575,2]
[351514771,1738611038927,-500.0,0.00016575,2]
[351514773,1738611038936,-500.0,0.00016575,2]
[351514775,1738611038948,-702.53,0.00016575,2]
[351514777,1738611038958,-500.0,0.00016575,2]
[351514779,1738611038968,-500.0,0.00016575,2]
[351514780,1738611038978,-2166.03,0.00016575,2]
[351514782,1738611038987,-606.29413628,0.00016575,2]
[351514784,1738611038997,-500.0,0.00016575,2]
[351514786,1738611039006,-500.0,0.00016575,2]
[351514788,1738611039016,-500.0,0.00016575,2]
[351514790,1738611039026,-500.0,0.00016575,2]
[351514792,1738611039036,-500.0,0.00016575,2]
[351514794,1738611039046,-500.0,0.00016575,2]
[351514796,1738611039056,-500.0,0.00016575,2]
[351514798,1738611039066,-500.0,0.00016575,2]
[351514800,1738611039076,-500.0,0.00016575,2]
[351514802,1738611039086,-184.31961155,0.00016612,2]
[351514804,1738611039102,-500.0,0.00016711,2]
[351514806,1738611039126,-500.0,0.00016711,2]
[351514808,1738611039146,-500.0,0.00016712,2]
[351514810,1738611039157,-500.0,0.00016712,2]
[351514812,1738611039172,-500.0,0.00016712,2]
[351514814,1738611039182,-500.0,0.00016712,2]
[351514816,1738611039191,-500.0,0.00016712,2]
[351514818,1738611039202,-500.0,0.00016712,2]
[351514820,1738611039212,-500.0,0.00016712,2]
[351514823,1738611039223,-500.0,0.00016712,2]
[351514824,1738611039233,-500.0,0.00016712,2]
[351514826,1738611039243,-627.46353948,0.00016712,2]
[351514829,1738611039253,-500.0,0.00016712,2]
[351514831,1738611039263,-547.71,0.00016712,2]
[351514833,1738611039274,-500.0,0.00016712,2]
[351514835,1738611039284,-1276.54,0.00016712,2]
[351514836,1738611039293,-500.0,0.00016712,2]
[351514837,1738611039303,-916.02,0.00016712,2]
[351514838,1738611039313,-2386.29,0.00016712,2]
[351514839,1738611039322,-2358.16,0.00016712,2]
[351514840,1738611039332,-500.0,0.00016712,2]
[351514841,1738611039341,-500.0,0.00016712,2]
[351514842,1738611039352,-259.21442083,0.00016712,2]
[351514844,1738611039363,-500.0,0.00016712,2]
[351514847,1738611039383,-500.0,0.00016712,2]
[351514849,1738611039394,-500.0,0.00016712,2]
[351514850,1738611039404,-834.04,0.00016712,2]
[351514851,1738611039416,-500.0,0.00016712,2]
[351514852,1738611039426,-500.0,0.00016712,2]
[351514853,1738611039436,-500.0,0.00016712,2]
[351514854,1738611039447,-9838.86,0.00016712,2]
[351514855,1738611039458,-500.0,0.00016712,2]
[351514856,1738611039468,-500.0,0.00016712,2]
[351514857,1738611039478,-1207.01,0.00016712,2]
[351514859,1738611039487,-433.45187432,0.00016712,2]
[351514861,1738611039496,-500.0,0.00016712,2]
[351514863,1738611039506,-500.0,0.00016712,2]
[351514864,1738611039516,-529.37,0.00016712,2]
[351514865,1738611039526,-3865.31,0.00016712,2]
[351514866,1738611039535,-500.0,0.00016712,2]
[351514867,1738611039545,-523.35,0.00016712,2]
[351514868,1738611039554,-500.0,0.00016712,2]
[351514869,1738611039564,-500.0,0.00016712,2]
[351514871,1738611039573,-500.0,0.00016712,2]
[351514873,1738611039582,-500.0,0.00016712,2]
[351514875,1738611039592,-500.0,0.00016712,2]
[351514877,1738611039602,-500.0,0.00016712,2]
[351514879,1738611039612,-510.49021339,0.00016712,2]
[351514881,1738611039623,-608.97090996,0.00016712,2]
[351514883,1738611039632,-500.0,0.00016712,2]
[351514885,1738611039641,-500.0,0.00016712,2]
[351514887,1738611039651,-648.17,0.00016712,2]
[351514889,1738611039660,-912.15,0.00016712,2]
[351514891,1738611039670,-1818.51,0.00016712,2]
[351514893,1738611039679,-500.0,0.00016712,2]
[351514895,1738611039688,-4561.23,0.00016712,2]
[351514897,1738611039697,-500.0,0.00016712,2]
[351514898,1738611039706,-500.0,0.00016712,2]
[351514900,1738611039717,-500.0,0.00016712,2]
[351514902,1738611039726,-500.44120524,0.00016712,2]
[351514904,1738611039736,-900.96,0.00016712,2]
[351514906,1738611039745,-581.22211367,0.00016712,2]
[351514908,1738611039754,-500.0,0.00016712,2]
[351514910,1738611039764,-702.53,0.00016712,2]
[351514912,1738611039774,-500.0,0.00016712,2]
[351514914,1738611039783,-2166.03,0.00016712,2]
[351514916,1738611039792,-500.0,0.00016712,2]
[351514918,1738611039802,-499.24290956,0.00016712,2]
[351514920,1738611039811,-500.0,0.00016712,2]
[351514922,1738611039821,-500.0,0.00016712,2]
[351514924,1738611039830,-500.0,0.00016712,2]
[351514926,1738611039840,-500.0,0.00016712,2]
[351514928,1738611039850,-768.6559825,0.000168,2]
[351514930,1738611039861,-500.0,0.00016848,2]
[351514932,1738611039875,-500.0,0.00016848,2]
[351514934,1738611039885,-500.0,0.00016849,2]
[351514936,1738611039895,-500.0,0.00016849,2]
[351514938,1738611039905,-500.0,0.00016849,2]
[351514940,1738611039916,-334.14660162,0.00016849,2]
[351514942,1738611039926,-500.0,0.00016849,2]
[351514944,1738611039935,-500.0,0.00016849,2]
[351514946,1738611039945,-500.0,0.00016849,2]
[351514948,1738611039955,-500.0,0.00016849,2]
[351514950,1738611039964,-518.58,0.00016849,2]
[351514952,1738611039973,-547.71,0.00016849,2]
[351514954,1738611039982,-1276.54,0.00016849,2]
[351514956,1738611039991,-500.0,0.00016849,2]
[351514958,1738611040001,-916.02,0.00016849,2]
[351514960,1738611040011,-2386.29,0.00016849,2]
[351514962,1738611040020,-2358.16,0.00016849,2]
[351514963,1738611040029,-500.0,0.00016849,2]
[351514965,1738611040039,-500.0,0.00016849,2]
[351514967,1738611040049,-500.0,0.00016849,2]
[351514969,1738611040058,-500.0,0.00016849,2]
[351514971,1738611040067,-834.04,0.00016849,2]
[351514973,1738611040076,-500.0,0.00016849,2]
[351514975,1738611040086,-500.0,0.00016849,2]
[351514977,1738611040096,-500.0,0.00016849,2]
[351514979,1738611040105,-9838.86,0.00016849,2]
[351514981,1738611040114,-500.0,0.00016849,2]
[351514983,1738611040127,-500.0,0.00016849,2]
[351514985,1738611040137,-1207.01,0.00016849,2]
[351514987,1738611040146,-500.0,0.00016849,2]
[351514989,1738611040155,-529.37,0.00016849,2]
[351514991,1738611040165,-3865.31,0.00016849,2]
[351514993,1738611040175,-500.0,0.00016849,2]
[351514995,1738611040185,-523.35,0.00016849,2]
[351514997,1738611040195,-500.0,0.00016849,2]
[351514999,1738611040206,-500.0,0.00016849,2]
[351515001,1738611040215,-500.0,0.00016849,2]
[351515003,1738611040225,-500.0,0.00016849,2]
[351515005,1738611040235,-648.17,0.00016849,2]
[351515007,1738611040245,-912.15,0.00016849,2]
[351515010,1738611040256,-1818.51,0.00016849,2]
[351515012,1738611040265,-4561.23,0.00016849,2]
[351515014,1738611040275,-500.0,0.00016849,2]
[351515016,1738611040285,-500.0,0.00016849,2]
[351515018,1738611040295,-900.96,0.00016849,2]
[351515019,1738611040304,-500.0,0.00016849,2]
[351515022,1738611040314,-702.53,0.00016849,2]
[351515024,1738611040324,-2166.03,0.00016849,2]
[351515026,1738611040333,-500.0,0.00016849,2]
[351515027,1738611040342,-500.0,0.00016849,2]
[351515030,1738611040354,-500.0,0.00016849,2]
[351515032,1738611040364,-500.0,0.00016984,2]
[351515034,1738611040377,-500.0,0.00016985,2]
[351515036,1738611040387,-500.0,0.00016985,2]
[351515038,1738611040397,-496.74668439,0.00016986,2]
[351515040,1738611040407,-500.0,0.00016986,2]
[351515042,1738611040417,-500.0,0.00016986,2]
[351515044,1738611040427,-500.0,0.00016986,2]
[351515046,1738611040437,-500.0,0.00016986,2]
[351515048,1738611040448,-500.0,0.00016986,2]
[351515050,1738611040458,-500.0,0.00016986,2]
[351515052,1738611040468,-547.71,0.00016986,2]
[351515054,1738611040478,-1276.54,0.00016986,2]
[351515056,1738611040488,-500.0,0.00016986,2]
[351515058,1738611040497,-916.02,0.00016986,2]
[351515060,1738611040506,-2386.29,0.00016986,2]
[351515062,1738611040516,-2358.16,0.00016986,2]
[351515064,1738611040525,-500.0,0.00016986,2]
[351515066,1738611040535,-500.0,0.00016986,2]
[351515068,1738611040545,-500.0,0.00016986,2]
[351515070,1738611040554,-500.0,0.00016986,2]
[351515072,1738611040564,-834.04,0.00016986,2]
[351515074,1738611040573,-500.0,0.00016986,2]
[351515076,1738611040584,-500.0,0.00016986,2]
[351515078,1738611040593,-9838.86,0.00016986,2]
[351515080,1738611040602,-500.0,0.00016986,2]
[351515082,1738611040611,-500.0,0.00016986,2]
[351515084,1738611040624,-1207.01,0.00016986,2]
[351515086,1738611040633,-500.0,0.00016986,2]
[351515088,1738611040643,-529.37,0.00016986,2]
[351515090,1738611040653,-3865.31,0.00016986,2]
[351515092,1738611040663,-500.0,0.00016986,2]
[351515094,1738611040673,-523.35,0.00016986,2]
[351515096,1738611040682,-500.0,0.00016986,2]
[351515098,1738611040692,-500.0,0.00016986,2]
[351515100,1738611040702,-500.0,0.00016986,2]
[351515102,1738611040711,-500.0,0.00016986,2]
[351515104,1738611040720,-648.17,0.00016986,2]
[351515106,1738611040729,-912.15,0.00016986,2]
[351515108,1738611040739,-1818.51,0.00016986,2]
[351515110,1738611040748,-4561.23,0.00016986,2]
[351515112,1738611040758,-500.0,0.00016986,2]
[351515114,1738611040768,-500.0,0.00016986,2]
[351515116,1738611040778,-900.96,0.00016986,2]
[351515118,1738611040787,-500.0,0.00016986,2]
[351515120,1738611040797,-702.53,0.00016986,2]
[351515122,1738611040806,-2166.03,0.00016986,2]
[351515124,1738611040815,-500.0,0.00016986,2]
[351515126,1738611040824,-500.0,0.00016986,2]
[351515129,1738611040834,-500.0,0.00016986,2]
[351515130,1738611040843,-420.0,0.00016997,2]
[351515133,1738611040853,-184.31961154,0.00017006,2]
[351515134,1738611040863,-708.9905684,0.00017041,2]
[351515136,1738611040876,-11461.02380752,0.00017067,2]
[351515138,1738611040886,-600.0,0.00017068,2]
[351515141,1738611040896,-1494.2682718,0.00017106,2]
[351515142,1738611040905,-500.0,0.00017122,2]
[351515144,1738611040914,-500.0,0.00017122,2]
[351515146,1738611040923,-500.0,0.00017123,2]
[351515148,1738611040933,-500.0,0.00017123,2]
[351515150,1738611040942,-500.0,0.00017123,2]
[351515152,1738611040952,-610.76990305,0.00017123,2]
[351515154,1738611040961,-500.0,0.00017123,2]
[351515156,1738611040970,-500.0,0.00017123,2]
[351515158,1738611040979,-547.71,0.00017123,2]
[351515160,1738611040989,-1276.54,0.00017123,2]
[351515162,1738611040998,-500.0,0.00017123,2]
[351515164,1738611041008,-916.02,0.00017123,2]
[351515166,1738611041017,-2386.29,0.00017123,2]
[351515168,1738611041026,-2358.16,0.00017123,2]
[351515170,1738611041036,-500.0,0.00017123,2]
[351515172,1738611041045,-500.0,0.00017123,2]
[351515174,1738611041054,-500.0,0.00017123,2]
[351515176,1738611041064,-500.0,0.00017123,2]
[351515178,1738611041073,-834.04,0.00017123,2]
[351515180,1738611041084,-500.0,0.00017123,2]
[351515182,1738611041093,-500.0,0.00017123,2]
[351515184,1738611041103,-9838.86,0.00017123,2]
[351515186,1738611041112,-500.0,0.00017123,2]
[351515188,1738611041125,-500.0,0.00017123,2]
[351515190,1738611041135,-1207.01,0.00017123,2]
[351515192,1738611041145,-500.0,0.00017123,2]
[351515194,1738611041160,-529.37,0.00017123,2]
[351515196,1738611041170,-3865.31,0.00017123,2]
[351515198,1738611041180,-500.0,0.00017123,2]
[351515200,1738611041190,-523.35,0.00017123,2]
[351515202,1738611041200,-500.0,0.00017123,2]
[351515204,1738611041210,-500.0,0.00017123,2]
[351515206,1738611041219,-500.0,0.00017123,2]
[351515208,1738611041228,-500.0,0.00017123,2]
[351515210,1738611041238,-648.17,0.00017123,2]
[351515212,1738611041247,-912.15,0.00017123,2]
[351515214,1738611041257,-1818.51,0.00017123,2]
[351515216,1738611041266,-4561.23,0.00017123,2]
[351515218,1738611041276,-500.0,0.00017123,2]
[351515220,1738611041285,-500.0,0.00017123,2]
[351515222,1738611041295,-900.96,0.00017123,2]
[351515224,1738611041305,-500.0,0.00017123,2]
[351515226,1738611041315,-702.53,0.00017123,2]
[351515228,1738611041324,-2166.03,0.00017123,2]
[351515230,1738611041334,-500.0,0.00017123,2]
[351515232,1738611041344,-500.0,0.00017123,2]
[351515234,1738611041354,-279.952,0.00017126,2]
[351515236,1738611041364,-262.3014518,0.00017178,2]
[351515238,1738611041379,-153.0,0.00017178,2]
[351515240,1738611041389,-153.0,0.00017178,2]
[351515242,1738611041399,-500.0,0.00017258,2]
[351515244,1738611041410,-500.0,0.00017259,2]
[351515246,1738611041421,-500.0,0.0001726,2]
[351515248,1738611041431,-500.0,0.0001726,2]
[351515250,1738611041442,-500.0,0.0001726,2]
[351515252,1738611041452,-500.0,0.0001726,2]
[351515254,1738611041464,-500.0,0.0001726,2]
[351515256,1738611041475,-547.71,0.0001726,2]
[351515258,1738611041485,-1276.54,0.0001726,2]
[351515260,1738611041495,-500.0,0.0001726,2]
[351515262,1738611041505,-916.02,0.0001726,2]
[351515264,1738611041515,-2386.29,0.0001726,2]
[351515266,1738611041525,-2358.16,0.0001726,2]
[351515268,1738611041535,-500.0,0.0001726,2]
[351515270,1738611041544,-500.0,0.0001726,2]
[351515272,1738611041554,-500.0,0.0001726,2]
[351515274,1738611041563,-500.0,0.0001726,2]
[351515276,1738611041572,-834.04,0.0001726,2]
[351515278,1738611041582,-500.0,0.0001726,2]
[351515280,1738611041591,-500.0,0.0001726,2]
[351515282,1738611041601,-9838.86,0.0001726,2]
[351515284,1738611041610,-500.0,0.0001726,2]
[351515286,1738611041623,-500.0,0.0001726,2]
[351515288,1738611041633,-1207.01,0.0001726,2]
[351515290,1738611041643,-524.96188372,0.0001726,2]
[351515292,1738611041652,-529.37,0.0001726,2]
[351515293,1738611041661,-3865.31,0.0001726,2]
[351515295,1738611041671,-257.57639462,0.0001726,2]
[351515297,1738611041680,-523.35,0.0001726,2]
[351515299,1738611041690,-500.0,0.0001726,2]
[351515301,1738611041699,-500.0,0.0001726,2]
[351515303,1738611041709,-500.0,0.0001726,2]
[351515305,1738611041718,-500.0,0.0001726,2]
[351515307,1738611041728,-648.17,0.0001726,2]
[351515309,1738611041737,-912.15,0.0001726,2]
[351515311,1738611041747,-1818.51,0.0001726,2]
[351515313,1738611041756,-4561.23,0.0001726,2]
[351515315,1738611041766,-500.0,0.0001726,2]
[351515317,1738611041776,-500.0,0.0001726,2]
[351515319,1738611041788,-900.96,0.0001726,2]
[351515321,1738611041798,-500.0,0.0001726,2]
[351515334,1738611041904,-702.53,0.0001726,2]
[351515336,1738611041928,-2166.03,0.0001726,2]
[351515338,1738611041937,-500.0,0.0001726,2]
[351515340,1738611041947,-500.0,0.0001726,2]
[351515342,1738611041958,-500.0,0.00017287,2]
[351515344,1738611041968,-537.0,0.00017288,2]
[351515346,1738611041979,-1994.0,0.00017288,2]
[351515348,1738611041989,-2299.0,0.00017288,2]
[351515350,1738611041999,-396.0,0.00017288,2]
[351515352,1738611042012,-702.43901865,0.00017293,2]
[351515354,1738611042022,-530.57746636,0.0001733,2]
[351515356,1738611042032,-500.0,0.00017396,2]
[351515358,1738611042043,-500.0,0.00017396,2]
[351515360,1738611042054,-339.22084844,0.00017396,2]
[351515362,1738611042064,-500.0,0.00017397,2]
[351515364,1738611042075,-500.0,0.00017397,2]
[351515366,1738611042086,-500.0,0.00017397,2]
[351515368,1738611042097,-500.0,0.00017397,2]
[351515371,1738611042108,-500.0,0.00017397,2]
[351515373,1738611042124,-547.71,0.00017397,2]
[351515375,1738611042135,-1276.54,0.00017397,2]
[351515377,1738611042145,-500.0,0.00017397,2]
[351515379,1738611042155,-916.02,0.00017397,2]
[351515381,1738611042164,-2386.29,0.00017397,2]
[351515383,1738611042173,-2358.16,0.00017397,2]
[351515385,1738611042182,-500.0,0.00017397,2]
[351515387,1738611042192,-500.0,0.00017397,2]
[351515388,1738611042202,-500.0,0.00017397,2]
[351515390,1738611042212,-500.0,0.00017397,2]
[351515392,1738611042222,-834.04,0.00017397,2]
[351515394,1738611042231,-500.0,0.00017397,2]
[351515396,1738611042242,-500.0,0.00017397,2]
[351515398,1738611042252,-9838.86,0.00017397,2]
[351515400,1738611042262,-500.0,0.00017397,2]
[351515402,1738611042272,-500.0,0.00017397,2]
[351515404,1738611042281,-1207.01,0.00017397,2]
[351515407,1738611042291,-529.37,0.00017397,2]
[351515409,1738611042301,-3865.31,0.00017397,2]
[351515411,1738611042310,-523.35,0.00017397,2]
[351515413,1738611042319,-500.0,0.00017397,2]
[351515415,1738611042329,-500.0,0.00017397,2]
[351515417,1738611042338,-500.0,0.00017397,2]